[Event "6th Uppsala Young Champions 2019"]
[Site "Uppsala"]
[Date "2019.10.27"]
[Round "4.6"]
[White "Nguyen, Gabriel"]
[Black "Crevatin, Leo"]
[Result "1-0"]
[ECO "D12"]
[WhiteElo "2071"]
[BlackElo "2221"]
[Annotator "NA"]
[PlyCount "61"]
[EventDate "2019.10.25"]
[EventType "swiss"]
[EventCountry "SWE"]
[SourceTitle "playchess.com"]
[Source "ChessBase"]
[SourceQuality "1"]
[TimeControl "5400+30"]

1. Nf3 {[%emt 1:27:28]} d5 {[%emt 1:27:27]} 2. e3 {[%emt 0:00:31]} Nf6 {[%emt 0:00:30]} 3. c4 {[%emt 0:00:29]} c6 {[%emt 0:00:36]} 4. b3 {[%emt 0:00:32]} Bf5 {[%emt 0:00:30]} 5. Bb2 {[%emt 0:00:30]} e6 {[%emt 0:00:30]} 6. Nc3 {[%emt 0:00:29]} Be7 {[%emt 0:00:28]} 7. d4 {[%emt 0:00:34]} Nbd7 {[%emt 0:00:32]} 8. Be2 {[%emt 0:00:32]} O-O {[%emt 0:00:31]} 9. O-O {[%emt 0:00:31]} Ne4 {[%emt 0:00:42]} 10. Nxe4 {[%emt 0:00:34]} Bxe4 {[%emt 0:00:30]} 11. Rc1 {[%emt 0:00:36]} Rc8 {[%emt 0:00:30]} 12. Nd2 {[%emt 0:00:38]} Bg6 {[%emt 0:00:29]} 13. c5 {[%emt 0:00:36]} b6 {[%emt 0:00:42]} 14. b4 {[%emt 0:00:30]} bxc5 {[%emt 0:00:34]} 15. bxc5 {[%emt 0:00:32]} Rb8 {[%emt 0:00:29]} 16. Bc3 {[%emt 0:00:32]} Qc7 {[%emt 0:00:35]} 17. Qa4 {[%emt 0:00:30]} Rb7 {[%emt 0:00:36]} 18. Nb3 {[%emt 0:00:32]} Rc8 {[%emt 0:00:48]} 19. Ba6 {[%emt 0:00:39]} Rbb8 {[%emt 0:00:33]} 20. Bxc8 {[%emt 0:00:32]} Rxc8 {[%emt 0:00:29]} 21. Rfd1 {[%emt 0:00:42]} Bf6 {[%emt 0:00:34]} 22. Ba5 {[%emt 0:00:35]} Qb7 {[%emt 0:00:37]} 23. Qb4 {[%emt 0:00:32]} Qa6 {[%emt 0:00:44]} 24. Rd2 {[%emt 0:00:41]} Rb8 {[%emt 0:00:29]} 25. Qa3 {[%emt 0:00:32]} e5 {[%emt 0:00:36]} 26. Bb4 {[%emt 0:00:34]} Qb7 {[%emt 0:00:34]} 27. Bc3 {[%emt 0:00:32]} e4 {[%emt 0:00:38]} 28. Na5 {[%emt 0:00:32]} Qc7 {[%emt 0:00:32]} 29. Qa4 {[%emt 0:00:33]} Rc8 {[%emt 0:00:31]} 30. Rb2 {[%emt 0:00:30]} Bd8 {[%emt 0:01:44]} 31. Rb7 {[%emt 0:00:34]} 1-0

[Event "6th Uppsala Young Champions 2019"]
[Site "Uppsala"]
[Date "2019.10.27"]
[Round "4.8"]
[White "Berglind, Axel"]
[Black "Trost, Edvin"]
[Result "0-1"]
[ECO "D00"]
[WhiteElo "2062"]
[BlackElo "1982"]
[Annotator "NA"]
[PlyCount "50"]
[EventDate "2019.10.25"]
[EventType "swiss"]
[EventCountry "SWE"]
[SourceTitle "playchess.com"]
[Source "ChessBase"]
[SourceQuality "1"]
[TimeControl "5400+30"]

1. d4 {[%emt 1:27:27]} d5 {[%emt 1:27:29]} 2. Bf4 {[%emt 0:00:30]} Nf6 {[%emt 0:00:29]} 3. e3 {[%emt 0:00:30]} c6 {[%emt 0:00:29]} 4. Bd3 {[%emt 0:00:37]} Bg4 {[%emt 0:00:32]} 5. Nf3 {[%emt 0:00:32]} e6 {[%emt 0:00:28]} 6. c3 {[%emt 0:00:39]} Be7 {[%emt 0:00:29]} 7. O-O {[%emt 0:00:34]} O-O {[%emt 0:00:30]} 8. h3 {[%emt 0:00:29]} Bh5 {[%emt 0:00:29]} 9. Nbd2 {[%emt 0:00:31]} Nbd7 {[%emt 0:00:30]} 10. g4 {[%emt 0:00:41]} Bg6 {[%emt 0:00:29]} 11. g5 {[%emt 0:00:38]} Bxd3 {[%emt 0:00:33]} 12. Re1 {[%emt 0:00:45]} Ne4 {[%emt 0:00:32]} 13. Qb3 {[%emt 0:00:47]} Nxd2 {[%emt 0:00:42]} 14. Nxd2 {[%emt 0:00:34]} Bxg5 {[%emt 0:00:31]} 15. Qxb7 {[%emt 0:00:34]} Bxf4 {[%emt 0:00:30]} 16. exf4 {[%emt 0:00:32]} Qc8 {[%emt 0:00:43]} 17. Qb4 {[%emt 0:00:45]} Rb8 {[%emt 0:00:31]} 18. Qd6 {[%emt 0:00:41]} Rxb2 {[%emt 0:00:32]} 19. Nf3 {[%emt 0:00:39]} Be4 {[%emt 0:00:29]} 20. Ne5 {[%emt 0:00:33]} Nxe5 {[%emt 0:00:30]} 21. Qxe5 {[%emt 0:00:30]} Qd8 {[%emt 0:00:31]} 22. Kh2 {[%emt 0:00:39]} Rxf2+ {[%emt 0:00:34]} 23. Kg1 {[%emt 0:00:30]} Qh4 {[%emt 0:00:38]} 24. Qg5 {[%emt 0:00:37]} Rg2+ {[%emt 0:00:34]} 25. Kf1 {[%emt 0:00:34]} Qf2# {[%emt 0:00:30]} 0-1

[Event "6th Uppsala Young Champions 2019"]
[Site "Uppsala"]
[Date "2019.10.27"]
[Round "4.10"]
[White "Ostlund, Joar"]
[Black "Sorensen, Hampus"]
[Result "0-1"]
[ECO "A58"]
[WhiteElo "1955"]
[BlackElo "2330"]
[Annotator "NA"]
[PlyCount "114"]
[EventDate "2019.10.25"]
[EventType "swiss"]
[EventCountry "SWE"]
[SourceTitle "playchess.com"]
[Source "ChessBase"]
[SourceQuality "1"]
[TimeControl "5400+30"]

1. d4 {[%emt 1:27:28]} Nf6 {[%emt 1:27:36]} 2. c4 {[%emt 0:00:29]} c5 {[%emt 0:00:34]} 3. d5 {[%emt 0:00:30]} b5 {[%emt 0:00:29]} 4. cxb5 {[%emt 0:00:30]} a6 {[%emt 0:00:28]} 5. bxa6 {[%emt 0:00:30]} g6 {[%emt 0:00:31]} 6. Nc3 {[%emt 0:00:29]} Bg7 {[%emt 0:00:28]} 7. e4 {[%emt 0:00:30]} O-O {[%emt 0:00:30]} 8. Nf3 {[%emt 0:00:29]} Qa5 {[%emt 0:00:35]} 9. Bd2 {[%emt 0:00:30]} d6 {[%emt 0:00:29]} 10. a4 {[%emt 0:01:09]} Bxa6 {[%emt 0:00:39]} 11. Be2 {[%emt 0:00:49]} Qb4 {[%emt 0:01:06]} 12. Bxa6 {[%emt 0:00:54]} Nxa6 {[%emt 0:00:34]} 13. Qc2 {[%emt 0:00:32]} Rfb8 {[%emt 0:00:33]} 14. Rb1 {[%emt 0:00:34]} Qb3 {[%emt 0:00:33]} 15. Qxb3 {[%emt 0:00:37]} Rxb3 {[%emt 0:00:29]} 16. Ke2 {[%emt 0:00:44]} Rab8 {[%emt 0:00:29]} 17. Ne1 {[%emt 0:01:28]} Nd7 {[%emt 0:02:27]} 18. Nd3 {[%emt 0:00:34]} c4 {[%emt 0:00:00]} 19. Nf4 {[%emt 0:00:33]} Ndc5 {[%emt 0:00:00]} 20. f3 {[%emt 0:00:30]} Rxb2 {[%emt 0:00:13]} 21. Rxb2 {[%emt 0:00:29]} Rxb2 {[%emt 0:00:28]} 22. Nb5 {[%emt 0:00:35]} c3 {[%emt 0:00:34]} 23. Rd1 {[%emt 0:00:32]} Rxd2+ {[%emt 0:00:38]} 24. Rxd2 {[%emt 0:00:28]} cxd2 {[%emt 0:00:29]} 25. Kxd2 {[%emt 0:00:30]} Bh6 {[%emt 0:00:28]} 26. g3 {[%emt 0:00:30]} Nxa4 {[%emt 0:00:29]} 27. Nd4 {[%emt 0:00:30]} N4c5 {[%emt 0:00:31]} 28. Nc6 {[%emt 0:00:30]} e5 {[%emt 0:00:30]} 29. dxe6 {[%emt 0:00:30]} fxe6 {[%emt 0:00:29]} 30. Ke2 {[%emt 0:00:30]} Bxf4 {[%emt 0:00:29]} 31. gxf4 {[%emt 0:00:29]} Nc7 {[%emt 0:00:31]} 32. Nd4 {[%emt 0:00:30]} Kf7 {[%emt 0:00:29]} 33. Ke3 {[%emt 0:00:29]} Kf6 {[%emt 0:00:29]} 34. Nc6 {[%emt 0:00:30]} Nb5 {[%emt 0:00:36]} 35. e5+ {[%emt 0:00:29]} dxe5 {[%emt 0:00:29]} 36. fxe5+ {[%emt 0:00:29]} Kf7 {[%emt 0:00:31]} 37. f4 {[%emt 0:00:29]} Nc7 {[%emt 0:00:34]} 38. Kd4 {[%emt 0:00:30]} Nd7 {[%emt 0:00:32]} 39. Nd8+ {[%emt 0:00:32]} Ke8 {[%emt 0:00:29]} 40. Nb7 {[%emt 0:00:30]} Nd5 {[%emt 0:00:32]} 41. Ke4 {[%emt 0:00:40]} Ke7 42. Kf3 {[%emt 0:00:20]} N7b6 {[%emt 0:01:02]} 43. Nd6 {[%emt 0:00:31]} Na4 {[%emt 0:00:30]} 44. Ne4 {[%emt 0:00:30]} Nac3 {[%emt 0:00:30]} 45. Ng5 {[%emt 0:00:30]} h6 {[%emt 0:00:28]} 46. Nh3 {[%emt 0:00:29]} Kd7 {[%emt 0:00:00]} 47. Nf2 {[%emt 0:00:30]} h5 {[%emt 0:01:06]} 48. Nd3 {[%emt 0:00:32]} Kc6 {[%emt 0:00:29]} 49. Kg3 {[%emt 0:00:31]} Ne2+ {[%emt 0:00:29]} 50. Kf3 {[%emt 0:00:29]} Nd4+ {[%emt 0:00:40]} 51. Ke4 {[%emt 0:00:29]} Nf5 {[%emt 0:00:29]} 52. Nf2 {[%emt 0:00:31]} Kc5 {[%emt 0:00:32]} 53. Nd3+ {[%emt 0:00:29]} Kc4 {[%emt 0:00:29]} 54. Nf2 {[%emt 0:00:29]} Kc3 {[%emt 0:00:29]} 55. Nh3 {[%emt 0:00:29]} Kd2 {[%emt 0:00:39]} 56. Ng5 {[%emt 0:00:29]} Ke2 {[%emt 0:00:29]} 57. Nxe6 {[%emt 0:00:31]} Nc3# {[%emt 0:00:32]} 0-1

[Event "6th Uppsala Young Champions 2019"]
[Site "Uppsala"]
[Date "2019.10.27"]
[Round "4.11"]
[White "Ostensson, Julia"]
[Black "Thorhallsson, Simon"]
[Result "0-1"]
[ECO "A01"]
[WhiteElo "1483"]
[BlackElo "2190"]
[Annotator "NA"]
[PlyCount "120"]
[EventDate "2019.10.25"]
[EventType "swiss"]
[EventCountry "SWE"]
[SourceTitle "playchess.com"]
[Source "ChessBase"]
[SourceQuality "1"]
[TimeControl "5400+30"]

1. g3 {[%emt 1:30:30]} d5 2. Bg2 {[%emt 0:00:30]} Nf6 3. b3 Bf5 {[%emt 1:31:30]} 4. Bb2 e6 5. e3 c5 {[%emt 0:01:00]} 6. d3 {[%emt 0:02:00]} Nc6 {[%emt 0:00:30]} 7. Ne2 Be7 {[%emt 0:00:30]} 8. O-O O-O {[%emt 0:00:30]} 9. Nd2 Rc8 {[%emt 0:00:30]} 10. a3 {[%emt 0:02:00]} h6 {[%emt 0:00:30]} 11. h3 Bh7 {[%emt 0:00:30]} 12. Kh2 Qc7 {[%emt 0:00:30]} 13. Nf3 {[%emt 0:01:30]} Rfd8 {[%emt 0:00:30]} 14. d4 {[%emt 0:00:30]} cxd4 {[%emt 0:00:30]} 15. exd4 {[%emt 0:00:30]} a6 {[%emt 0:00:30]} 16. c3 {[%emt 0:00:30]} b5 {[%emt 0:00:30]} 17. Re1 {[%emt 0:00:30]} Ne4 {[%emt 0:00:30]} 18. Kg1 {[%emt 0:00:30]} Nd6 {[%emt 0:00:30]} 19. Rc1 {[%emt 0:00:30]} Qb6 {[%emt 0:00:30]} 20. Nf4 {[%emt 0:00:30]} Be4 {[%emt 0:00:30]} 21. Nd3 {[%emt 0:00:30]} Rc7 {[%emt 0:00:30]} 22. Nc5 {[%emt 0:00:30]} Bf5 {[%emt 0:00:30]} 23. Nd2 {[%emt 0:00:30]} Rdc8 {[%emt 0:00:30]} 24. Nf1 {[%emt 0:00:30]} a5 {[%emt 0:00:30]} 25. Ne3 {[%emt 0:00:30]} Bg6 {[%emt 0:00:30]} 26. b4 {[%emt 0:00:30]} Nc4 {[%emt 0:00:30]} 27. Nxc4 {[%emt 0:00:30]} bxc4 {[%emt 0:00:30]} 28. Ra1 {[%emt 0:00:30]} Ra7 {[%emt 0:00:30]} 29. Qd2 {[%emt 0:00:30]} Bg5 {[%emt 0:00:30]} 30. f4 {[%emt 0:00:30]} Be7 {[%emt 0:00:30]} 31. Bf3 {[%emt 0:00:30]} Rca8 {[%emt 0:00:30]} 32. Rec1 {[%emt 0:00:30]} axb4 {[%emt 0:00:30]} 33. axb4 {[%emt 0:00:30]} Rxa1 {[%emt 0:00:30]} 34. Rxa1 Rxa1+ {[%emt 0:00:30]} 35. Bxa1 {[%emt 0:01:00]} Qa7 36. Bb2 {[%emt 0:00:30]} Bxc5 {[%emt 0:01:00]} 37. bxc5 {[%emt 0:00:30]} Na5 {[%emt 0:00:30]} 38. Bd1 {[%emt 0:00:30]} Be4 {[%emt 0:00:30]} 39. Qc1 {[%emt 0:00:30]} Nb3 {[%emt 0:00:30]} 40. Bxb3 {[%emt 0:00:30]} cxb3 41. Qa1 Qxa1+ {[%emt 0:01:00]} 42. Bxa1 Bd3 {[%emt 0:00:30]} 43. Kf2 {[%emt 0:01:30]} Bb5 {[%emt 0:00:30]} 44. Ke3 f6 {[%emt 0:00:30]} 45. Kd2 {[%emt 0:01:00]} Kf7 46. Kc1 Ke7 {[%emt 0:01:00]} 47. Kb2 Kd7 {[%emt 0:00:30]} 48. Kxb3 {[%emt 0:01:30]} Kc6 49. Kb4 {[%emt 0:00:30]} Bc4 {[%emt 0:01:00]} 50. Bb2 {[%emt 0:00:30]} g6 {[%emt 0:00:30]} 51. Bc1 {[%emt 0:00:30]} f5 {[%emt 0:00:30]} 52. Ka3 {[%emt 0:00:30]} h5 53. Kb2 {[%emt 0:00:30]} Bd3 {[%emt 0:01:00]} 54. Be3 {[%emt 0:00:30]} Bf1 {[%emt 0:00:30]} 55. h4 {[%emt 0:00:30]} Bd3 {[%emt 0:00:30]} 56. Kc1 {[%emt 0:00:30]} Bc4 57. Kb2 Bd3 58. Ka3 Bc4 {[%emt 0:01:30]} 59. Kb4 Bd3 60. Ka3 {[%emt 0:02:00]} Bc4 0-1

[Event "6th Uppsala Young Champions 2019"]
[Site "Uppsala"]
[Date "2019.10.27"]
[Round "4.12"]
[White "Carlsson, Ludvig"]
[Black "Rasti, Arvin"]
[Result "0-1"]
[ECO "C90"]
[WhiteElo "2066"]
[BlackElo "2179"]
[Annotator "NA"]
[PlyCount "114"]
[EventDate "2019.10.25"]
[EventType "swiss"]
[EventCountry "SWE"]
[SourceTitle "playchess.com"]
[Source "ChessBase"]
[SourceQuality "1"]
[TimeControl "5400+30"]

1. e4 {[%emt 1:27:28]} e5 {[%emt 1:27:27]} 2. Nf3 {[%emt 0:00:30]} Nc6 {[%emt 0:00:29]} 3. Bb5 {[%emt 0:00:29]} a6 {[%emt 0:00:28]} 4. Ba4 {[%emt 0:00:28]} Nf6 {[%emt 0:00:30]} 5. d3 {[%emt 0:00:29]} b5 {[%emt 0:00:29]} 6. Bb3 {[%emt 0:00:29]} Be7 {[%emt 0:00:29]} 7. O-O {[%emt 0:00:32]} O-O {[%emt 0:00:30]} 8. Re1 {[%emt 0:00:32]} d6 {[%emt 0:00:31]} 9. c3 {[%emt 0:00:29]} h6 {[%emt 0:00:35]} 10. Nbd2 {[%emt 0:00:32]} Re8 {[%emt 0:00:35]} 11. Nf1 {[%emt 0:00:32]} Bf8 {[%emt 0:00:29]} 12. h3 {[%emt 0:00:30]} Ne7 {[%emt 0:00:33]} 13. Ng3 {[%emt 0:00:45]} Ng6 {[%emt 0:00:30]} 14. d4 {[%emt 0:00:30]} Bb7 {[%emt 0:00:36]} 15. a4 {[%emt 0:00:38]} exd4 {[%emt 0:00:33]} 16. Qxd4 {[%emt 0:00:52]} c5 {[%emt 0:00:36]} 17. Qd1 {[%emt 0:00:43]} Nxe4 {[%emt 0:00:37]} 18. Nxe4 {[%emt 0:00:29]} Rxe4 {[%emt 0:00:33]} 19. Rxe4 {[%emt 0:00:48]} Bxe4 {[%emt 0:00:29]} 20. Be3 {[%emt 0:00:47]} d5 {[%emt 0:01:10]} 21. Nd2 {[%emt 0:00:40]} Bf5 {[%emt 0:00:32]} 22. Qf3 {[%emt 0:00:37]} Be6 {[%emt 0:00:33]} 23. Nf1 {[%emt 0:00:45]} Rb8 {[%emt 0:00:31]} 24. axb5 {[%emt 0:00:40]} Rxb5 {[%emt 0:00:31]} 25. Bc2 {[%emt 0:00:34]} Ne5 {[%emt 0:00:39]} 26. Qg3 {[%emt 0:00:31]} Qf6 {[%emt 0:00:39]} 27. Rxa6 {[%emt 0:00:48]} Rxb2 {[%emt 0:00:31]} 28. Ba4 {[%emt 0:00:36]} Kh7 {[%emt 0:00:39]} 29. Nh2 {[%emt 0:00:34]} Rb1+ {[%emt 0:00:31]} 30. Nf1 {[%emt 0:00:31]} g6 {[%emt 0:00:37]} 31. Bf4 {[%emt 0:00:33]} Nc4 {[%emt 0:00:39]} 32. Bd7 {[%emt 0:00:29]} Rb6 {[%emt 0:00:36]} 33. Rxb6 {[%emt 0:00:30]} Nxb6 {[%emt 0:00:29]} 34. Bxe6 {[%emt 0:00:29]} Qxe6 {[%emt 0:00:29]} 35. Ne3 {[%emt 0:00:32]} Bg7 {[%emt 0:00:30]} 36. Qf3 {[%emt 0:00:31]} d4 {[%emt 0:00:30]} 37. cxd4 {[%emt 0:00:38]} cxd4 {[%emt 0:00:31]} 38. Nd1 {[%emt 0:00:26]} Nd5 {[%emt 0:00:30]} 39. Bd2 {[%emt 0:00:30]} Nb6 {[%emt 0:00:34]} 40. Qd3 {[%emt 0:00:29]} Nc4 {[%emt 0:00:31]} 41. Bc1 {[%emt 0:00:29]} Ne5 {[%emt 0:00:31]} 42. Qf1 {[%emt 0:00:31]} d3 {[%emt 0:00:30]} 43. Ne3 {[%emt 0:00:31]} Qc6 {[%emt 0:00:33]} 44. Qd1 {[%emt 0:00:29]} Qe4 {[%emt 0:00:32]} 45. Bd2 {[%emt 0:00:30]} Nc4 {[%emt 0:00:32]} 46. Nxc4 {[%emt 0:00:29]} Qxc4 {[%emt 0:00:29]} 47. Qf3 {[%emt 0:00:32]} h5 {[%emt 0:00:32]} 48. Qe3 {[%emt 0:00:29]} Qb5 {[%emt 0:00:37]} 49. g3 {[%emt 0:00:32]} Qd5 {[%emt 0:00:33]} 50. Kh2 {[%emt 0:00:29]} Bf6 {[%emt 0:00:37]} 51. Qh6+ {[%emt 0:00:29]} Kg8 {[%emt 0:00:29]} 52. Qf4 {[%emt 0:00:29]} Be5 {[%emt 0:00:34]} 53. Qe3 {[%emt 0:00:30]} h4 {[%emt 0:00:32]} 54. Bb4 {[%emt 0:00:32]} hxg3+ 55. fxg3 {[%emt 0:00:29]} Qa2+ {[%emt 0:01:02]} 56. Bd2 {[%emt 0:00:28]} Bc3 {[%emt 0:00:31]} 57. Qe8+ {[%emt 0:00:32]} Kg7 {[%emt 0:00:30]} 0-1

[Event "6th Uppsala Young Champions 2019"]
[Site "Uppsala"]
[Date "2019.10.27"]
[Round "4.13"]
[White "Wernberg, Hugo"]
[Black "Narva, David"]
[Result "1-0"]
[ECO "E63"]
[WhiteElo "2006"]
[BlackElo "1979"]
[Annotator "NA"]
[PlyCount "49"]
[EventDate "2019.10.25"]
[EventType "swiss"]
[EventCountry "SWE"]
[SourceTitle "playchess.com"]
[Source "ChessBase"]
[SourceQuality "1"]
[TimeControl "5400+30"]

1. c4 {[%emt 1:27:28]} Nf6 {[%emt 1:27:29]} 2. Nf3 {[%emt 0:00:30]} g6 {[%emt 0:00:28]} 3. g3 {[%emt 0:00:30]} Bg7 {[%emt 0:00:29]} 4. Bg2 {[%emt 0:00:29]} O-O {[%emt 0:00:30]} 5. O-O {[%emt 0:00:30]} d6 {[%emt 0:00:29]} 6. d4 {[%emt 0:00:30]} Nc6 {[%emt 0:00:28]} 7. Nc3 {[%emt 0:00:30]} a6 {[%emt 0:00:34]} 8. b3 {[%emt 0:00:35]} Bd7 {[%emt 0:00:31]} 9. Bb2 {[%emt 0:00:41]} Rb8 {[%emt 0:00:28]} 10. d5 {[%emt 0:00:30]} Na5 {[%emt 0:00:41]} 11. Nd2 {[%emt 0:00:45]} b5 {[%emt 0:00:36]} 12. cxb5 {[%emt 0:00:33]} Bxb5 {[%emt 0:00:56]} 13. Nxb5 {[%emt 0:00:52]} Rxb5 {[%emt 0:00:48]} 14. e4 {[%emt 0:00:59]} e6 {[%emt 0:00:47]} 15. dxe6 {[%emt 0:00:35]} fxe6 {[%emt 0:00:29]} 16. Re1 {[%emt 0:00:33]} d5 {[%emt 0:00:56]} 17. exd5 {[%emt 0:00:38]} exd5 {[%emt 0:00:32]} 18. Nf3 {[%emt 0:00:40]} Nc4 {[%emt 0:00:49]} 19. Bxf6 {[%emt 0:00:41]} Bxf6 {[%emt 0:00:33]} 20. bxc4 {[%emt 0:00:30]} dxc4 {[%emt 0:00:36]} 21. Rc1 {[%emt 0:00:48]} Qxd1 {[%emt 0:00:32]} 22. Rexd1 {[%emt 0:00:29]} c3 {[%emt 0:00:29]} 23. Bf1 {[%emt 0:00:34]} Rb2 {[%emt 0:00:30]} 24. Bxa6 {[%emt 0:00:35]} Rxa2 {[%emt 0:00:29]} 25. Bc4+ {[%emt 0:00:29]} 1-0

[Event "6th Uppsala Young Champions 2019"]
[Site "Uppsala"]
[Date "2019.10.27"]
[Round "4.14"]
[White "Soderstrom, Adrian"]
[Black "Muntean, Victor"]
[Result "1-0"]
[ECO "B01"]
[WhiteElo "1960"]
[BlackElo "2020"]
[Annotator "NA"]
[PlyCount "61"]
[EventDate "2019.10.25"]
[EventType "swiss"]
[EventCountry "SWE"]
[SourceTitle "playchess.com"]
[Source "ChessBase"]
[SourceQuality "1"]
[TimeControl "5400+30"]

1. e4 {[%emt 1:30:30]} d5 2. exd5 {[%emt 0:00:30]} Qxd5 {[%emt 1:31:00]} 3. Nc3 {[%emt 0:00:30]} Qd8 4. d4 {[%emt 0:00:30]} Nf6 {[%emt 0:01:00]} 5. Nf3 {[%emt 0:00:30]} Bg4 {[%emt 0:00:30]} 6. Be2 e6 {[%emt 0:00:30]} 7. O-O {[%emt 0:01:00]} Nbd7 {[%emt 0:00:30]} 8. Ne5 {[%emt 0:00:30]} Bxe2 {[%emt 0:00:30]} 9. Qxe2 {[%emt 0:00:30]} Nxe5 {[%emt 0:00:30]} 10. dxe5 Nd5 {[%emt 0:00:30]} 11. Qb5+ {[%emt 0:01:00]} c6 {[%emt 0:00:30]} 12. Qxb7 {[%emt 0:00:30]} Nb4 {[%emt 0:00:30]} 13. Bg5 {[%emt 0:00:30]} f6 {[%emt 0:00:30]} 14. Rad1 {[%emt 0:00:30]} Qc8 {[%emt 0:00:30]} 15. Qxc8+ {[%emt 0:00:30]} Rxc8 {[%emt 0:00:30]} 16. exf6 {[%emt 0:00:30]} Nxc2 {[%emt 0:00:30]} 17. a3 {[%emt 0:00:30]} Rb8 {[%emt 0:00:30]} 18. Rd2 {[%emt 0:00:30]} Rxb2 {[%emt 0:00:30]} 19. Rc1 Bxa3 {[%emt 0:00:30]} 20. Rdxc2 {[%emt 0:01:00]} Rb3 {[%emt 0:00:30]} 21. Rd1 {[%emt 0:00:30]} Kf7 {[%emt 0:00:30]} 22. fxg7 {[%emt 0:00:30]} Kxg7 {[%emt 0:00:30]} 23. h3 {[%emt 0:00:30]} Bb4 {[%emt 0:00:30]} 24. Ne4 {[%emt 0:00:30]} Rf8 {[%emt 0:00:30]} 25. Rd7+ {[%emt 0:00:30]} Kg6 {[%emt 0:00:30]} 26. Be3 {[%emt 0:00:30]} Rb1+ {[%emt 0:00:30]} 27. Kh2 {[%emt 0:00:30]} Rf5 {[%emt 0:00:30]} 28. Rxc6 {[%emt 0:00:30]} a5 {[%emt 0:00:30]} 29. Rxe6+ {[%emt 0:00:30]} Kh5 {[%emt 0:00:30]} 30. Ng3+ {[%emt 0:00:30]} Kh4 {[%emt 0:00:30]} 31. Rxh7+ {[%emt 0:00:30]} 1-0

[Event "6th Uppsala Young Champions 2019"]
[Site "Uppsala"]
[Date "2019.10.27"]
[Round "4.15"]
[White "Skahlberg Bjerknes-Lima de Far, Warg"]
[Black "Mitra, Akash"]
[Result "0-1"]
[ECO "B40"]
[WhiteElo "1637"]
[BlackElo "1936"]
[Annotator "NA"]
[PlyCount "84"]
[EventDate "2019.10.25"]
[EventType "swiss"]
[EventCountry "SWE"]
[SourceTitle "playchess.com"]
[Source "ChessBase"]
[SourceQuality "1"]
[TimeControl "5400+30"]

1. e4 {[%emt 1:30:30]} c5 {[%emt 1:30:30]} 2. Nf3 {[%emt 0:00:30]} e6 3. d4 {[%emt 0:00:30]} cxd4 4. Nxd4 {[%emt 0:00:30]} Qb6 5. Nc3 {[%emt 0:00:30]} Bc5 {[%emt 0:02:00]} 6. Be3 {[%emt 0:00:30]} Nf6 {[%emt 0:00:30]} 7. Na4 {[%emt 0:00:30]} Qa5+ {[%emt 0:00:30]} 8. Nc3 {[%emt 0:00:30]} Nxe4 {[%emt 0:00:30]} 9. Nb3 {[%emt 0:00:30]} Nxc3 {[%emt 0:00:30]} 10. Nxa5 {[%emt 0:00:30]} Nxd1 {[%emt 0:00:30]} 11. Rxd1 {[%emt 0:00:30]} Bxe3 {[%emt 0:00:30]} 12. fxe3 {[%emt 0:00:30]} d5 {[%emt 0:00:30]} 13. Bb5+ {[%emt 0:00:30]} Bd7 {[%emt 0:00:30]} 14. Bxd7+ {[%emt 0:00:30]} Nxd7 {[%emt 0:00:30]} 15. Nxb7 {[%emt 0:00:30]} Rb8 {[%emt 0:00:30]} 16. Nd6+ {[%emt 0:00:30]} Ke7 17. Nxf7 {[%emt 0:00:30]} Kxf7 {[%emt 0:01:00]} 18. O-O+ {[%emt 0:00:30]} Nf6 {[%emt 0:00:30]} 19. e4 {[%emt 0:00:30]} dxe4 {[%emt 0:00:30]} 20. Rd7+ {[%emt 0:00:30]} Kg6 21. Rxa7 {[%emt 0:00:30]} Rxb2 {[%emt 0:01:00]} 22. Rf2 {[%emt 0:00:30]} Rd8 {[%emt 0:00:30]} 23. h3 {[%emt 0:00:30]} e3 {[%emt 0:00:30]} 24. Rf3 {[%emt 0:00:30]} Rd1+ {[%emt 0:00:30]} 25. Kh2 {[%emt 0:00:30]} Nd5 {[%emt 0:00:30]} 26. Rg3+ {[%emt 0:00:30]} Kf6 27. Rf3+ {[%emt 0:00:30]} Ke5 {[%emt 0:01:00]} 28. Ra5 {[%emt 0:00:30]} e2 {[%emt 0:00:30]} 29. Re3+ {[%emt 0:00:30]} Kd4 {[%emt 0:00:30]} 30. Rxe2 {[%emt 0:00:30]} Rc1 {[%emt 0:00:30]} 31. Rxe6 {[%emt 0:00:30]} Rcxc2 {[%emt 0:00:30]} 32. Rd6 {[%emt 0:00:30]} Rxg2+ {[%emt 0:00:30]} 33. Kh1 {[%emt 0:00:30]} Rg5 {[%emt 0:00:30]} 34. Ra4+ {[%emt 0:00:30]} Ke5 {[%emt 0:00:30]} 35. Rc6 {[%emt 0:00:30]} Rf5 {[%emt 0:00:30]} 36. Rc1 {[%emt 0:00:30]} Rf3 {[%emt 0:00:30]} 37. Re1+ {[%emt 0:00:30]} Ne3 {[%emt 0:00:30]} 38. Ra5+ Kf4 {[%emt 0:00:30]} 39. Ra4+ Kg3 {[%emt 0:00:30]} 40. Rg1+ {[%emt 0:01:30]} Kxh3 {[%emt 0:00:30]} 41. Rxg7 {[%emt 0:00:30]} Rh2+ {[%emt 0:00:30]} 42. Kg1 {[%emt 0:00:30]} Rf1# 0-1

[Event "6th Uppsala Young Champions 2019"]
[Site "Uppsala"]
[Date "2019.10.27"]
[Round "4.16"]
[White "Grahn, Vidar"]
[Black "Dingertz, Erik"]
[Result "1-0"]
[ECO "C45"]
[WhiteElo "1926"]
[BlackElo "1908"]
[Annotator "NA"]
[PlyCount "68"]
[EventDate "2019.10.25"]
[EventType "swiss"]
[EventCountry "SWE"]
[SourceTitle "playchess.com"]
[Source "ChessBase"]
[SourceQuality "1"]
[TimeControl "5400+30"]

1. e4 {[%emt 1:30:30]} e5 {[%emt 1:30:30]} 2. Nf3 {[%emt 0:00:30]} Nc6 3. d4 {[%emt 0:00:30]} exd4 {[%emt 0:01:00]} 4. Nxd4 Nxd4 {[%emt 0:00:30]} 5. Qxd4 {[%emt 0:01:00]} d6 {[%emt 0:00:30]} 6. c4 {[%emt 0:00:30]} c5 {[%emt 0:00:30]} 7. Qd2 {[%emt 0:00:30]} f5 {[%emt 0:00:30]} 8. Nc3 {[%emt 0:00:30]} Nf6 {[%emt 0:00:30]} 9. Bd3 {[%emt 0:00:30]} Be6 {[%emt 0:00:30]} 10. exf5 {[%emt 0:00:30]} Bf7 {[%emt 0:00:30]} 11. O-O {[%emt 0:00:30]} Be7 {[%emt 0:00:30]} 12. b3 {[%emt 0:00:30]} O-O {[%emt 0:00:30]} 13. Bb2 {[%emt 0:00:30]} a6 {[%emt 0:00:30]} 14. Rad1 {[%emt 0:00:30]} Qd7 {[%emt 0:00:30]} 15. Rfe1 {[%emt 0:00:30]} Bd8 {[%emt 0:00:30]} 16. Bc2 {[%emt 0:00:30]} Re8 {[%emt 0:00:30]} 17. Rxe8+ {[%emt 0:00:30]} Nxe8 {[%emt 0:00:30]} 18. Nd5 {[%emt 0:00:30]} Bh5 {[%emt 0:00:30]} 19. f3 {[%emt 0:00:30]} Nf6 {[%emt 0:00:30]} 20. Nxf6+ {[%emt 0:00:30]} gxf6 {[%emt 0:00:30]} 21. Qxd6 {[%emt 0:00:30]} Qxd6 {[%emt 0:00:30]} 22. Rxd6 {[%emt 0:00:30]} Be7 {[%emt 0:00:30]} 23. Rd7 {[%emt 0:00:30]} Kf8 {[%emt 0:00:30]} 24. Rxb7 {[%emt 0:00:30]} Be8 {[%emt 0:00:30]} 25. Be4 {[%emt 0:00:30]} Rd8 {[%emt 0:00:30]} 26. Bd5 {[%emt 0:00:30]} Bf7 {[%emt 0:00:30]} 27. Bxf6 {[%emt 0:00:30]} Bxf6 {[%emt 0:00:30]} 28. Rxf7+ {[%emt 0:00:30]} Kg8 {[%emt 0:00:30]} 29. Rxf6+ {[%emt 0:00:30]} Kg7 {[%emt 0:00:30]} 30. Rc6 {[%emt 0:00:30]} Kf8 {[%emt 0:00:30]} 31. Rxc5 {[%emt 0:00:30]} Ke7 {[%emt 0:00:30]} 32. Rc7+ {[%emt 0:00:30]} Rd7 {[%emt 0:00:30]} 33. Rxd7+ {[%emt 0:00:30]} Kxd7 {[%emt 0:00:30]} 34. g4 {[%emt 0:00:30]} Ke7 {[%emt 0:00:30]} 1-0